fUST/lending_fUST_20250917
["ID","MTS","AMOUNT","RATE_DAILY","PERIOD"]
[385876078,1758081049731,-151.0,0.00022992,3]
[385876080,1758081049740,-380.19734276,0.00023,3]
[385876082,1758081049749,-217.86301978,0.00023,3]
[385876084,1758081049758,-233.34517135,0.00023,3]
[385876086,1758081049767,-152.0,0.00023,7]
[385876098,1758081049876,-646.0,0.00023013,2]
[385876100,1758081049890,-480.0,0.00023013,3]
[385876103,1758081049900,-504.55,0.00023013,3]
[385876105,1758081049909,-725.26,0.00023013,3]
[385876107,1758081049919,-595.13,0.00023013,3]
[385876108,1758081049928,-480.0,0.00023013,3]
[385876110,1758081049938,-480.0,0.00023013,3]
[385876113,1758081049947,-480.0,0.00023013,3]
[385876114,1758081049957,-480.0,0.00023013,3]
[385876117,1758081049968,-480.0,0.00023013,3]
[385876119,1758081049977,-869.69,0.00023013,3]
[385876121,1758081049986,-480.0,0.00023013,3]
[385876123,1758081049995,-480.0,0.00023013,3]
[385876124,1758081050003,-480.0,0.00023013,3]
[385876126,1758081050012,-480.0,0.00023013,3]
[385876128,1758081050022,-1198.76,0.00023013,3]
[385876130,1758081050031,-585.83,0.00023013,3]
[385876132,1758081050039,-799.74,0.00023013,3]
[385876134,1758081050048,-480.0,0.00023013,3]
[385876136,1758081050058,-480.0,0.00023013,3]
[385876138,1758081050067,-1736.49,0.00023013,3]
[385876140,1758081050076,-480.0,0.00023013,3]
[385876142,1758081050085,-1166.2,0.00023013,3]
[385876144,1758081050094,-480.0,0.00023013,3]
[385876146,1758081050103,-629.68,0.00023013,3]
[385876148,1758081050112,-882.35,0.00023013,3]
[385876150,1758081050122,-2823.32,0.00023013,3]
[385876152,1758081050131,-737.33,0.00023013,3]
[385876154,1758081050140,-1723.65,0.00023013,3]
[385876156,1758081050149,-1366.4549401,0.00023013,3]
[385876854,1758081819445,304.0,0.0002115,2]
[385876867,1758082238130,-1200.0,0.00021916,2]
[385876868,1758082238140,-300.0,0.00021916,2]
[385876869,1758082238149,-417.15472785,0.00021917,2]
[385876870,1758082238158,-480.0,0.00021917,2]
[385876871,1758082238167,-480.0,0.00021917,2]
[385876872,1758082238176,-480.0,0.00021917,2]
[385876873,1758082238185,-480.0,0.00021917,2]
[385876874,1758082238194,-574.16,0.00021917,2]
[385876875,1758082238203,-480.0,0.00021917,2]
[385876876,1758082238212,-480.0,0.00021917,2]
[385876877,1758082238222,-923.24,0.00021917,2]
[385876878,1758082238231,-480.0,0.00021917,2]
[385876879,1758082238240,-480.0,0.00021917,2]
[385876880,1758082238249,-688.5,0.00021917,2]
[385876881,1758082238258,-480.0,0.00021917,2]
[385876882,1758082238267,-535.899232,0.00021917,2]
[385876883,1758082238276,-1771.76294603,0.00021917,2]
[385876884,1758082238287,-759.70221452,0.00021917,2]
[385876885,1758082238299,-65.37483945,0.00021917,2]
[385876886,1758082238308,-480.0,0.00021917,2]
[385876887,1758082238317,-49.45160293,0.00021917,2]
[385876888,1758082238328,-899.56839707,0.00021917,2]
[385876889,1758082238337,-480.0,0.00021917,2]
[385876890,1758082238346,-480.0,0.00021917,2]
[385876891,1758082238355,-27.8672792,0.00021917,2]
[385876895,1758082243414,-452.1327208,0.00021917,2]
[385876896,1758082243424,-480.0,0.00021917,2]
[385876897,1758082243432,-617.58,0.00021917,2]
[385876898,1758082243442,-480.0,0.00021917,2]
[385876899,1758082243451,-480.0,0.00021917,2]
[385876900,1758082243460,-480.0,0.00021917,2]
[385876901,1758082243469,-600.52,0.00021917,2]
[385876902,1758082243478,-480.0,0.00021917,2]
[385876903,1758082243487,-1103.04,0.00021917,2]
[385876904,1758082243496,-480.0,0.00021917,2]
[385876905,1758082243505,-480.0,0.00021917,2]
[385876906,1758082243514,-480.0,0.00021917,2]
[385876907,1758082243523,-336.06836893,0.00021917,2]
[385877049,1758082623487,214.98290733,0.000199,2]
[385877050,1758082636046,1342.0,0.0002115,2]
[385877052,1758082985256,5000.0,0.000276,50]
[385877053,1758083038094,382.46765607,0.000199,2]
[385877094,1758083432413,-179.80221756,0.00021427,2]
[385877096,1758083432423,-300.0,0.00021916,2]
[385877098,1758083432432,-149.31228346,0.00021917,2]
[385877105,1758083432472,-698.47834986,0.00021917,2]
[385877108,1758083432481,-349.22806577,0.00021917,2]
[385877111,1758083432490,-591.84,0.00021917,2]
[385877114,1758083432499,-480.0,0.00021917,2]
[385877116,1758083432508,-480.0,0.00021917,2]
[385877118,1758083432517,-480.0,0.00021917,2]
[385877120,1758083432526,-550.24,0.00021917,2]
[385877122,1758083432535,-480.0,0.00021917,2]
[385877124,1758083432544,-480.0,0.00021917,2]
[385877125,1758083432554,-480.0,0.00021917,2]
[385877126,1758083432562,-480.0,0.00021917,2]
[385877128,1758083432571,-480.0,0.00021917,2]
[385877130,1758083432580,-480.0,0.00021917,2]
[385877132,1758083432589,-659.81,0.00021917,2]
[385877134,1758083432598,-451.24,0.00021917,2]
[385877136,1758083432607,-1356.63,0.00021917,2]
[385877137,1758083432616,-480.0,0.00021917,2]
[385877138,1758083432625,-480.0,0.00021917,2]
[385877139,1758083432634,-480.0,0.00021917,2]
[385877140,1758083432643,-909.48,0.00021917,2]
[385877141,1758083432651,-404.63410435,0.00021917,2]
[385877142,1758083432660,-1196.7,0.00021917,2]
[385877143,1758083432669,-480.0,0.00021917,2]
[385877144,1758083432678,-7324.93,0.00021917,2]
[385877145,1758083432688,-743.19,0.00021917,2]
[385877146,1758083432696,-814.00908141,0.00021917,2]
[385877177,1758083438348,-506.74957518,0.00021916,2]
[385877179,1758083438358,-242.89954493,0.00021917,2]
[385877181,1758083438369,-0.17137366,0.00021917,2]
[385877183,1758083438379,-392.87144231,0.00021917,2]
[385877407,1758083440672,-87.12855769,0.00021917,2]
[385877409,1758083440682,-480.0,0.00021917,2]
[385877411,1758083440693,-480.0,0.00021917,2]
[385877413,1758083440702,-480.0,0.00021917,2]
[385877415,1758083440711,-2388.99,0.00021917,2]
[385877417,1758083440721,-264.7395189,0.00021917,2]
[385877419,1758083440730,-1297.94,0.00021917,2]
[385877421,1758083440739,-1454.28,0.00021917,2]
[385877423,1758083440748,-619.03,0.00021917,2]
[385877425,1758083440757,-480.0,0.00021917,2]
[385877427,1758083440767,-698.53,0.00021917,2]
[385877429,1758083440776,-664.79,0.00021917,2]
[385877431,1758083440785,-480.0,0.00021917,2]
[385877433,1758083440794,-480.0,0.00021917,2]
[385877435,1758083440803,-1527.58,0.00021917,2]
[385877437,1758083440815,-2367.91,0.00021917,2]
[385877439,1758083440824,-498.5,0.00021917,2]
[385877441,1758083440833,-522.62,0.00021917,2]
[385877443,1758083440843,-630.5,0.00021917,2]
[385877445,1758083440852,-1060.12,0.00021917,2]
[385877447,1758083440861,-609.43,0.00021917,2]
[385877449,1758083440870,-503.69,0.00021917,2]
[385877451,1758083440879,-513.63,0.00021917,2]
[385877453,1758083440889,-561.27,0.00021917,2]
[385877455,1758083440898,-1280.33,0.00021917,2]
[385877457,1758083440907,-1364.55,0.00021917,2]
[385877459,1758083440916,-480.0,0.00021917,2]
[385877461,1758083440925,-3668.34,0.00021917,2]
[385877463,1758083440934,-640.21,0.00021917,2]
[385877465,1758083440944,-1815.47,0.00021917,2]
[385877467,1758083440953,-884.78,0.00021917,2]
[385877469,1758083440962,-507.84,0.00021917,2]
[385877471,1758083440972,-480.0,0.00021917,2]
[385877473,1758083440980,-1601.93,0.00021917,2]
[385877475,1758083440990,-480.0,0.00021917,2]
[385877477,1758083440999,-487.31584758,0.00021917,2]
[385877479,1758083441008,-510.2973288,0.00021917,2]
[385877480,1758083441017,-480.0,0.00021917,2]
[385877482,1758083441026,-2488.64,0.00021917,2]
[385877484,1758083441035,-480.0,0.00021917,2]
[385877486,1758083441044,-480.0,0.00021917,2]
[385877488,1758083441053,-254.287954,0.00021917,10]
[385877490,1758083441062,-480.0,0.00021917,2]
[385877492,1758083441071,-871.53,0.00021917,2]
[385877494,1758083441080,-690.2,0.00021917,2]
[385877495,1758083441089,-540.45,0.00021917,2]
[385877497,1758083441098,-480.0,0.00021917,2]
[385877498,1758083441107,-480.0,0.00021917,2]
[385877500,1758083441117,-13709.34,0.00021917,2]
[385877502,1758083441126,-480.0,0.00021917,2]
[385877503,1758083441135,-736.15,0.00021917,2]
[385877505,1758083441144,-480.0,0.00021917,2]
[385877507,1758083441153,-1759.46,0.00021917,2]
[385877509,1758083441162,-3328.78,0.00021917,2]
[385877510,1758083441176,-480.0,0.00021917,2]
[385877512,1758083441185,-319.77226246,0.00021917,2]
[385877514,1758083441195,-484.54811073,0.00021917,2]
[385877515,1758083441204,-648.05,0.00021917,2]
[385877517,1758083441215,-575.5,0.00021917,2]
[385877519,1758083441223,-502.95,0.00021917,2]
[385877520,1758083441232,-480.0,0.00021917,2]
[385877522,1758083441242,-1300.11,0.00021917,2]
[385877524,1758083441252,-480.0,0.00021917,2]
[385877526,1758083441261,-184.97,0.00022,2]
[385877527,1758083441270,-437.11,0.00022181,3]
[385877529,1758083441279,-218.55,0.00022181,3]
[385877531,1758083441289,-655.68,0.00022181,3]
[385877533,1758083441298,-591.84,0.00022191,3]
[385877534,1758083441307,-160.98769618,0.00022191,3]
[385877536,1758083441316,-480.0,0.00022191,3]
[385877538,1758083441325,-480.0,0.00022191,3]
[385877539,1758083441335,-550.24,0.00022191,3]
[385877541,1758083441344,-480.0,0.00022191,3]
[385877543,1758083441353,-480.0,0.00022191,3]
[385877545,1758083441362,-480.0,0.00022191,3]
[385877546,1758083441373,-480.0,0.00022191,3]
[385877548,1758083441382,-480.0,0.00022191,3]
[385877550,1758083441391,-659.81,0.00022191,3]
[385877551,1758083441400,-480.0,0.00022191,3]
[385877553,1758083441409,-480.0,0.00022191,3]
[385877555,1758083441418,-909.48,0.00022191,3]
[385877557,1758083441427,-1196.7,0.00022191,3]
[385877558,1758083441436,-480.0,0.00022191,3]
[385877560,1758083441444,-7324.93,0.00022191,3]
[385877562,1758083441453,-743.19,0.00022191,3]
[385877563,1758083441462,-1057.08,0.00022191,3]
[385877565,1758083441471,-480.0,0.00022191,3]
[385877567,1758083441480,-480.0,0.00022191,3]
[385877568,1758083441489,-480.0,0.00022191,3]
[385877570,1758083441498,-480.0,0.00022191,3]
[385877572,1758083441507,-2388.99,0.00022191,3]
[385877574,1758083441517,-1297.94,0.00022191,3]
[385877576,1758083441526,-1454.28,0.00022191,3]
[385877577,1758083441535,-619.03,0.00022191,3]
[385877579,1758083441544,-480.0,0.00022191,3]
[385877581,1758083441554,-698.53,0.00022191,3]
[385877582,1758083441563,-664.79,0.00022191,3]
[385877584,1758083441572,-480.0,0.00022191,3]
[385877586,1758083441581,-480.0,0.00022191,3]
[385877588,1758083441593,-1527.58,0.00022191,3]
[385877590,1758083441602,-2367.91,0.00022191,3]
[385877592,1758083441611,-498.5,0.00022191,3]
[385877593,1758083441620,-522.62,0.00022191,3]
[385877595,1758083441629,-630.5,0.00022191,3]
[385877597,1758083441638,-1060.12,0.00022191,3]
[385877599,1758083441647,-609.43,0.00022191,3]
[385877601,1758083441656,-503.69,0.00022191,3]
[385877603,1758083441665,-513.63,0.00022191,3]
[385877604,1758083441675,-561.27,0.00022191,3]
[385877606,1758083441684,-1280.33,0.00022191,3]
[385877608,1758083441693,-1364.55,0.00022191,3]
[385877610,1758083441702,-480.0,0.00022191,3]
[385877611,1758083441711,-3668.34,0.00022191,3]
[385877613,1758083441721,-640.21,0.00022191,3]
[385877615,1758083441730,-1815.47,0.00022191,3]
[385877617,1758083441739,-884.78,0.00022191,3]
[385877619,1758083441748,-507.84,0.00022191,3]
[385877621,1758083441758,-480.0,0.00022191,3]
[385877622,1758083441767,-1601.93,0.00022191,3]
[385877624,1758083441776,-480.0,0.00022191,3]
[385877626,1758083441785,-480.0,0.00022191,3]
[385877627,1758083441794,-2488.64,0.00022191,3]
[385877629,1758083441804,-480.0,0.00022191,3]
[385877631,1758083441813,-480.0,0.00022191,3]
[385877633,1758083441822,-480.0,0.00022191,3]
[385877634,1758083441832,-871.53,0.00022191,3]
[385877636,1758083441842,-690.2,0.00022191,3]
[385877638,1758083441851,-540.45,0.00022191,3]
[385877640,1758083441860,-480.0,0.00022191,3]
[385877642,1758083441869,-480.0,0.00022191,3]
[385877644,1758083441878,-13709.34,0.00022191,3]
[385877645,1758083441888,-736.15,0.00022191,3]
[385877647,1758083441897,-480.0,0.00022191,3]
[385877649,1758083441906,-480.0,0.00022191,3]
[385877651,1758083441916,-1759.46,0.00022191,3]
[385877653,1758083441926,-3328.78,0.00022191,3]
[385877654,1758083441935,-480.0,0.00022191,3]
[385877656,1758083441944,-648.05,0.00022191,3]
[385877658,1758083441954,-575.5,0.00022191,3]
[385877660,1758083441963,-502.95,0.00022191,2]
[385877662,1758083441972,-413.34861132,0.00022191,3]
[385877664,1758083441981,-1300.11,0.00022191,3]
[385877665,1758083441990,-377.00082456,0.00022191,3]
[385878276,1758083923345,168.559734,0.0002744,30]
[385878277,1758083931646,4998.4,0.00027767,120]
[385878281,1758084499846,5000.0,0.00030308,67]
[385878282,1758084521685,18106.53820413,0.00030308,50]
[385878284,1758084632717,-168.0,0.00021178,2]
[385878285,1758084632726,-160.0,0.00021906,2]
[385878286,1758084632735,-300.0,0.00021916,2]
[385878287,1758084632744,-160.0,0.00021917,2]
[385878289,1758084632753,-160.0,0.00021917,2]
[385878290,1758084632763,-160.0,0.00021917,2]
[385878291,1758084632772,-480.0,0.00021917,2]
[385878292,1758084632781,-480.0,0.00021917,2]
[385878293,1758084632790,-1096.98,0.00021917,2]
[385878294,1758084632799,-480.0,0.00021917,2]
[385878295,1758084632808,-488.10469185,0.00021917,2]
[385878296,1758084632817,-504.38,0.00021917,2]
[385878297,1758084632827,-40.42369871,0.00021917,2]
[385878298,1758084632839,-439.57630129,0.00021917,2]
[385878299,1758084632848,-480.0,0.00021917,2]
[385878301,1758084632857,-447.21870831,0.00021917,2]
[385878333,1758084638644,-32.78129169,0.00021917,2]
[385878335,1758084638654,-480.0,0.00021917,2]
[385878337,1758084638663,-480.0,0.00021917,2]
[385878339,1758084638674,-480.0,0.00021917,2]
[385878341,1758084638683,-811.04,0.00021917,2]
[385878343,1758084638692,-604.83,0.00021917,2]
[385878345,1758084638701,-480.0,0.00021917,2]
[385878347,1758084638710,-480.0,0.00021917,2]
[385878349,1758084638719,-167.95113671,0.00021917,2]
[385878350,1758084638728,-342.40404413,0.00021917,2]
[385878509,1758084641103,-141.44188906,0.00021917,2]
[385878510,1758084641112,-833.69,0.00021917,2]
[385878511,1758084641121,-488.84449505,0.00021917,2]
[385878512,1758084641131,-480.0,0.00021917,2]
[385878513,1758084641140,-480.0,0.00021917,2]
[385878514,1758084641149,-2281.25,0.00021917,2]
[385878515,1758084641159,-480.0,0.00021917,2]
[385878516,1758084641168,-3051.38,0.00021917,2]
[385878517,1758084641178,-527.54,0.00021917,2]
[385878518,1758084641187,-490.88353791,0.00021917,2]
[385878519,1758084641196,-480.0,0.00021917,2]
[385878520,1758084641205,-482.61014308,0.00021917,2]
[385878521,1758084641214,-1333.09,0.00021917,2]
[385878522,1758084641224,-178.50035734,0.00021917,2]
[385878523,1758084641232,-2170.59,0.00021917,2]
[385878524,1758084641242,-480.0,0.00021917,2]
[385878525,1758084641251,-480.0,0.00021917,2]
[385878526,1758084641260,-480.0,0.00021917,2]
[385878527,1758084641270,-558.64,0.00021917,2]
[385878528,1758084641279,-480.0,0.00021917,2]
[385878529,1758084641288,-567.44,0.00021917,2]
[385878530,1758084641298,-640.31,0.00021917,2]
[385878531,1758084641307,-542.52,0.00021917,2]
[385878532,1758084641316,-495.41,0.00021917,2]
[385878533,1758084641326,-1400.28,0.00021917,2]
[385878534,1758084641335,-3362.64,0.00021917,2]
[385878535,1758084641345,-577.96,0.00021917,2]
[385878536,1758084641354,-1173.63,0.00021917,2]
[385878537,1758084641363,-480.0,0.00021917,2]
[385878538,1758084641372,-971.78,0.00021917,2]
[385878539,1758084641381,-1664.18,0.00021917,2]
[385878540,1758084641391,-1468.44,0.00021917,2]
[385878541,1758084641400,-491.05340819,0.00021917,2]
[385878542,1758084641409,-498.7,0.00021917,2]
[385878543,1758084641419,-480.0,0.00021917,2]
[385878544,1758084641428,-480.0,0.00021917,2]
[385878545,1758084641437,-1191.76,0.00021917,2]
[385878546,1758084641446,-480.0,0.00021917,2]
[385878547,1758084641455,-514.5,0.00021917,2]
[385878548,1758084641464,-480.0,0.00021917,2]
[385878549,1758084641473,-480.0,0.00021917,2]
[385878550,1758084641482,-586.86,0.00021917,2]
[385878551,1758084641491,-480.0,0.00021917,2]
[385878552,1758084641500,-12566.9,0.00021917,2]
[385878553,1758084641510,-6714.52,0.00021917,2]
[385878554,1758084641519,-480.0,0.00021917,2]
[385878555,1758084641528,-798.9,0.00021917,2]
[385878556,1758084641537,-480.0,0.00021917,2]
[385878557,1758084641547,-674.81,0.00021917,2]
[385878558,1758084641556,-480.0,0.00021917,2]
[385878559,1758084641565,-487.84238238,0.00021917,2]
[385878560,1758084641574,-873.62,0.00021917,2]
[385878561,1758084641583,-522.46,0.00021917,2]
[385878562,1758084641591,-594.05,0.00021917,2]
[385878563,1758084641600,-480.0,0.00021917,2]
[385878564,1758084641609,-681.25,0.00021917,2]
[385878565,1758084641619,-1250.84,0.00021917,2]
[385878566,1758084641633,-2189.91,0.00021917,2]
[385878567,1758084641642,-968.99,0.00021917,2]
[385878568,1758084641651,-609.39,0.00021917,2]
[385878569,1758084641660,-632.68,0.00021917,2]
[385878570,1758084641670,-1189.77,0.00021917,2]
[385878571,1758084641679,-480.0,0.00021917,2]
[385878572,1758084641688,-480.0,0.00021917,2]
[385878573,1758084641697,-480.0,0.00021917,2]
[385878574,1758084641707,-480.0,0.00021917,2]
[385878575,1758084641716,-480.0,0.00021917,2]
[385878576,1758084641726,-164.42,0.00022,2]
[385878577,1758084641735,-218.55,0.00022181,3]
[385878578,1758084641744,-655.67,0.00022181,3]
[385878579,1758084641753,-1000.0,0.0002219,2]
[385878580,1758084641762,-1000.0,0.0002219,2]
[385878581,1758084641772,-1000.0,0.0002219,2]
[385878582,1758084641782,-1000.0,0.0002219,2]
[385878583,1758084641791,-1000.0,0.0002219,2]
[385878584,1758084641800,-1000.0,0.0002219,2]
[385878585,1758084641808,-1000.0,0.0002219,2]
[385878586,1758084641817,-574.88490923,0.0002219,2]
[385878587,1758084641826,-4113.8059147,0.00022191,2]
[385878588,1758084641836,-480.0,0.00022191,3]
[385878589,1758084641845,-1096.98,0.00022191,3]
[385878590,1758084641854,-480.0,0.00022191,3]
[385878592,1758084641863,-504.38,0.00022191,3]
[385878594,1758084641872,-480.0,0.00022191,3]
[385878596,1758084641881,-480.0,0.00022191,3]
[385878598,1758084641890,-480.0,0.00022191,3]
[385878599,1758084641899,-480.0,0.00022191,3]
[385878600,1758084641908,-480.0,0.00022191,3]
[385878601,1758084641917,-480.0,0.00022191,3]
[385878602,1758084641926,-811.04,0.00022191,3]
[385878603,1758084641935,-604.83,0.00022191,3]
[385878604,1758084641944,-480.0,0.00022191,3]
[385878605,1758084641953,-480.0,0.00022191,3]
[385878606,1758084641962,-833.69,0.00022191,3]
[385878607,1758084641971,-342.08673377,0.00022191,3]
[385878608,1758084641980,-480.0,0.00022191,3]
[385878609,1758084641989,-2281.25,0.00022191,3]
[385878610,1758084641998,-185.07698484,0.00022191,3]
[385878611,1758084642007,-3051.38,0.00022191,3]
[385878612,1758084642016,-527.54,0.00022191,3]
[385878613,1758084642026,-480.0,0.00022191,3]
[385878614,1758084642036,-1333.09,0.00022191,3]
[385878615,1758084642045,-2170.59,0.00022191,3]
[385878616,1758084642053,-480.0,0.00022191,3]
[385878617,1758084642063,-480.0,0.00022191,3]
[385878618,1758084642070,-480.0,0.00022191,3]
[385878619,1758084642078,-558.64,0.00022191,3]
[385878620,1758084642087,-157.24898937,0.00022191,3]
[385878621,1758084642096,-567.44,0.00022191,3]
[385878622,1758084642104,-640.31,0.00022191,3]
[385878623,1758084642113,-542.52,0.00022191,3]
[385878624,1758084642122,-495.41,0.00022191,3]
[385878625,1758084642130,-1400.28,0.00022191,3]
[385878626,1758084642139,-3362.64,0.00022191,3]
[385878627,1758084642148,-577.96,0.00022191,3]
[385878628,1758084642158,-1173.63,0.00022191,3]
[385878629,1758084642167,-480.0,0.00022191,3]
[385878630,1758084642175,-971.78,0.00022191,3]
[385878631,1758084642184,-1664.18,0.00022191,3]
[385878632,1758084642194,-1468.44,0.00022191,3]
[385878633,1758084642203,-498.7,0.00022191,3]
[385878634,1758084642212,-480.0,0.00022191,3]
[385878635,1758084642221,-480.0,0.00022191,3]
[385878636,1758084642230,-1191.76,0.00022191,3]
[385878637,1758084642239,-194.86101984,0.00022191,3]
[385878638,1758084642248,-514.5,0.00022191,3]
[385878639,1758084642257,-480.0,0.00022191,3]
[385878640,1758084642268,-480.0,0.00022191,3]
[385878641,1758084642278,-586.86,0.00022191,3]
[385878642,1758084642287,-480.0,0.00022191,3]
[385878643,1758084642296,-10748.66346694,0.00022191,3]
[385878646,1758084643801,-265.0,0.00022191,3]
[385878656,1758084646685,-480.0,0.00021917,2]
[385878657,1758084646695,-1553.23653306,0.00022191,3]
[385878658,1758084646704,-3385.80868784,0.00022191,3]
[385878659,1758084646716,-1018.9669137,0.00022191,3]
[385878662,1758084793963,3114.0,0.0002115,2]
[385878664,1758085157821,-927.2439841,0.0002135,2]
[385878665,1758085157848,-300.0,0.00021915,2]
[385878666,1758085157876,-160.0,0.00021916,2]
[385878667,1758085157903,-233.34517135,0.00021916,2]
[385878668,1758085157931,-160.0,0.00021916,2]
[385878669,1758085157958,-847.79063332,0.00021916,2]
[385878670,1758085157990,-160.0,0.00021916,2]
[385878671,1758085158018,-160.0,0.00021916,2]
[385878672,1758085158045,-531.53982319,0.00021917,2]
[385878673,1758085158073,-160.0,0.00021917,2]
[385878674,1758085158100,-160.0,0.00021917,2]
[385878675,1758085158434,-156.72021268,0.00021917,2]
[385878680,1758085479744,175.1336566,0.00021113,2]
[385878709,1758085831909,-723.34752755,0.00021182,2]
[385878781,1758085837822,-920.0,0.00021182,2]
[385878783,1758085837833,-3368.60463169,0.00021182,2]
[385878785,1758085837844,-268.91408826,0.00021182,2]
[385878787,1758085837853,-1865.37330328,0.00021817,2]
[385878816,1758085839918,-2721.53089556,0.00021817,2]
[385878817,1758085839927,-300.0,0.00021916,2]
[385878818,1758085839937,-6980.50275365,0.00021917,2]
[385878819,1758085839946,-480.0,0.00021917,2]
[385878820,1758085839955,-480.0,0.00021917,2]
[385878821,1758085839964,-1198.72,0.00021917,2]
[385878822,1758085839973,-485.16245955,0.00021917,2]
[385878823,1758085839982,-488.06420683,0.00021917,2]
[385878825,1758085839991,-423.28290133,0.00021917,2]
[385878827,1758085840000,-488.68998665,0.00021917,2]
[385878829,1758085840009,-1.82614046,0.00021917,2]
[385878854,1758086234066,188.6804109,0.00027836,30]
[385878855,1758086293412,188.6804109,0.00027836,30]
[385878856,1758086355260,188.6804109,0.00027836,30]
[385878857,1758086369488,180.0,0.00021377,2]
[385878858,1758086415078,188.6804109,0.00027836,30]
[385878859,1758086477123,188.6804109,0.00027836,30]
[385878860,1758086534923,195.8462055,0.00027836,30]
[385878871,1758086961631,-168.0,0.00021377,2]
[385878872,1758086961658,-4013.54117402,0.00021817,2]
[385878873,1758086961685,-500.0,0.000219,2]
[385878874,1758086961783,-288.92765196,0.00021915,2]
[385878875,1758086961812,-911.07234804,0.00021915,2]
[385878876,1758086961839,-300.0,0.00021915,2]
[385878877,1758086961868,-500.0,0.00021916,2]
[385878878,1758086961896,-323.5731535,0.00021916,2]
[385878879,1758086962058,-500.0,0.00021916,2]
[385878880,1758086962087,-486.80746865,0.00021916,2]
[385878881,1758086962194,-3957.10405962,0.00021917,2]
[385878921,1758087032104,-300.0,0.00021916,2]
[385878923,1758087032113,-641.88266733,0.00021917,2]
[385878926,1758087032129,-267.92295715,0.00021917,2]
[385878928,1758087032141,-1816.53079738,0.00021917,2]
[385879037,1758087038054,-831.09228641,0.00021917,2]
[385879039,1758087038065,-433.89074549,0.00021917,2]
[385879041,1758087038076,-6222.29391234,0.00021917,2]
[385879046,1758087038112,-1121.12524431,0.00021917,2]
[385879048,1758087038123,-1669.69168357,0.00021917,2]
[385879051,1758087038134,-2769.29800061,0.00021917,2]
[385879819,1758087069066,208.51469486,0.000199,2]
[385879823,1758087258558,208.02756921,0.000199,2]
[385879824,1758087448612,205.43764616,0.000199,2]
[385879825,1758087507044,182.0114177,0.00020867,2]
[385879827,1758087649154,211.92884487,0.000199,2]
[385879829,1758087841789,212.42884485,0.000199,2]
[385879834,1758087912208,160.0,0.00021,2]
[385879835,1758087949858,417.35768242,0.00020821,2]
[385879837,1758088021572,212.42884485,0.000199,2]
[385879839,1758088200718,212.42884485,0.000199,2]
[385879867,1758088232375,-747.53893887,0.00021525,2]
[385879868,1758088232384,-223.66152885,0.000217,2]
[385879869,1758088232393,-223.66152885,0.00021799,2]
[385879871,1758088232402,-1138.0,0.000218,2]
[385879873,1758088232411,-339.0,0.00021822,2]
[385879875,1758088232421,-300.0,0.00021822,2]
[385879877,1758088232430,-300.0,0.00021822,2]
[385879879,1758088232439,-300.0,0.00021822,2]
[385879880,1758088232448,-1200.0,0.00021822,2]
[385879881,1758088232458,-1488.9448701,0.00021823,2]
[385879882,1758088232467,-5468.4868711,0.00021823,2]
[385879883,1758088232477,-500.0,0.000219,2]